[Event "American Cup Open Champions 2024"]
[Site "Saint Louis"]
[Date "2024.03.12"]
[Round "1.2"]
[White "Shankland, Sam"]
[Black "So, Wesley"]
[Result "0-1"]
[ECO "C67"]
[WhiteElo "2674"]
[BlackElo "2757"]
[Annotator "TA"]
[PlyCount "92"]
[EventDate "2024.03.11"]
[EventType "k.o."]
[EventCountry "USA"]
[SourceTitle "playchess.com"]
[Source "ChessBase"]
[SourceQuality "1"]
[TimeControl "900+10"]

{[%evp 25,92,-13,-2,-29,-29,-32,-21,-29,-20,-31,-36,-37,-29,-43,-30,-51,-12,-43,-29,-64,-46,-58,0,0,0,0,0,-73,0,-16,0,0,0,-22,0,0,0,0,0,0,0,-16,0,0,0,0,0,0,0,0,0,0,0,0,0,0,0,-592,-580,-479,-381,-29974,-29975,-29975,-29976,-29976,-29977,-29978,-29979]} 1. e4 {[%emt 0:00:01]} e5 {[%emt 0:00:13]} 2. Nf3 {[%emt 0:00:01]} Nc6 {[%emt 0:00:01]} 3. Bb5 {[%emt 0:00:02]} Nf6 {[%emt 0:00:02]} 4. O-O Nxe4 5. d4 {[%emt 0:00:04]} Nd6 {[%emt 0:00:03]} 6. Bxc6 {[%emt 0:00:01]} dxc6 {[%emt 0:00:01]} 7. dxe5 {[%emt 0:00:01]} Nf5 {[%emt 0:00:01]} 8. Qxd8+ {[%emt 0:00:03]} Kxd8 {[%emt 0:00:01]} 9. Nc3 {[%emt 0:00:01]} Bd7 {[%emt 0:00:22]} 10. h3 {[%emt 0:00:06]} h6 {[%emt 0:00:05]} 11. b3 {[%emt 0:00:02]} Kc8 {[%emt 0:00:04]} 12. Bb2 {[%emt 0:00:03]} b6 {[%emt 0:00:01]} 13. Rad1 {[%emt 0:00:16]} a5 {[%emt 0:00:01]} 14. Rfe1 {[%emt 0:00:37]} Bb4 {[%emt 0:00:17]} 15. a3 {[%emt 0:00:41]} Bxc3 {[%emt 0:00:02]} 16. Bxc3 {[%emt 0:00:01] Die Stellung ist ausgeglichen.} Be6 {[%emt 0:00:18]} 17. g4 {[%emt 0:01:38]} Ne7 {[%emt 0:00:02]} 18. Kh2 {[%emt 0:00:46]} c5 {[%emt 0:00:17] ...a4 wäre nun fies.} 19. a4 {[%emt 0:00:33]} Kb7 {[%emt 0:00:33]} 20. Bb2 {[%emt 0:02:41]} b5 {[%emt 0:01:53]} 21. axb5 {[%emt 0:00:28]} a4 {[%emt 0:00:01]} 22. Ra1 {[%emt 0:01:33]} axb3 {[%emt 0:00:18]} 23. cxb3 {[%emt 0:00:02]} Kb6 {[%emt 0:00:49]} ({Günstiger ist} 23... Nd5 $15) 24. Ba3 $1 $11 {[%emt 0:02:19]} Rhd8 {[%emt 0:02:26][%cal Od8d3]} 25. Rec1 $1 {[%emt 0:00:16]} Rd5 {[%emt 0:00:22]} 26. Kg3 {[%emt 0:00:47]} (26. Rxc5 $2 Rxa3 27. Rxd5 Rxa1 $19) (26. Ng1 $11 {hält das Gleichgewicht.}) 26... Ng6 {[%emt 0:01:58] Schwarz steht aktiver.} (26... Kxb5 $6 27. Rxc5+ Kb6 28. Rxd5 Bxd5 29. e6 fxe6 30. Bb2 Rxa1 31. Bxa1 $16) (26... g5 $17) 27. h4 {[%emt 0:00:40]} (27. Rxc5 $2 Rxa3 28. Rxd5 Rxa1 $19) 27... Rxa3 {[%emt 0:03:21]} 28. Rxa3 {[%emt 0:00:01]} Rd3 $1 {[%emt 0:00:01][%cal Oe6d5] Weiss muss nun ...Bd5! beachten.} 29. Re1 $1 {[%emt 0:00:35] [#] Und jetzt Re3 wäre schön.} Nxh4 $1 {[%emt 0:00:10]} 30. Re3 {[%emt 0:00:28]} ({Doch nicht} 30. Kxh4 Rxf3 31. Re3 Rxf2 $19) 30... Rxe3 {[%emt 0:00:03]} 31. fxe3 {[%emt 0:00:00]} Nxf3 {[%emt 0:00:25]} 32. Kxf3 {[%emt 0:00:02]} Kxb5 {[%emt 0:00:01][%mdl 4096] Endspiel. KR-KB} 33. e4 {[%emt 0:00:28]} Kb4 {[%emt 0:01:40][%csl LRa3,LRb3]} 34. Ra7 {[%emt 0:00:07]} c6 {[%emt 0:00:13]} 35. Rb7+ {[%emt 0:01:51]} Kc3 {[%emt 0:00:24]} 36. Rb6 {[%emt 0:00:01]} Bxb3 {[%emt 0:03:01]} 37. Rxc6 {[%emt 0:00:02]} Kd4 {[%emt 0:00:01]} 38. Kf4 {[%emt 0:02:00]} Be6 {[%emt 0:00:02] ...c4 ist eine echte Drohung.} 39. Rd6+ {[%emt 0:00:04]} Kc3 {[%emt 0:00:01] Zielt auf ...c4 ab.} 40. g5 {[%emt 0:00:13]} hxg5+ {[%emt 0:00:02]} 41. Kxg5 $2 {[%emt 0:00:01][%mdl 8192]} (41. Ke3 $1 $11 {und Weiss muss sich keine Sorgen machen.}) 41... c4 {[%emt 0:00:00]} 42. Kf4 {[%emt 0:00:04] [#]} Kb2 $1 {[%emt 0:00:02] ( -> ...c3)} 43. Ke3 $2 {[%emt 0:00:08]} (43. Rb6+ $19 Kc1 44. Ke3) 43... c3 {[%emt 0:00:08] Schwarz setzt Matt.} 44. Rb6+ {[%emt 0:00:54]} Bb3 {[%emt 0:00:06]} 45. Rc6 {[%emt 0:00:16]} g5 {[%emt 0:00:23]} 46. e6 {[%emt 0:00:52]} fxe6 {[%emt 0:00:04] Gewichteter Fehlerwert: Weiß=0.43/Schwarz=0.09 (makellos) .  Verlustzug:     	Weiß=1     	---        Fehler:       	Weiß=2     	Schwarz=2     Ungenau:       	Weiß=2     	Schwarz=1     OK:         	Weiß=10    	Schwarz=16    Bester:       	Weiß=2     	Schwarz=3     Stark:        	Weiß=3     	Schwarz=2} ({Minderwertig wäre} 46... Bxe6 47. Kd3 $11) 0-1

[Event "American Cup Open Champions 2024"]
[Site "Saint Louis"]
[Date "2024.03.12"]
[Round "1.2"]
[White "Oparin, Grigoriy"]
[Black "Caruana, Fabiano"]
[Result "0-1"]
[ECO "D02"]
[WhiteElo "2671"]
[BlackElo "2804"]
[Annotator "TA"]
[PlyCount "88"]
[EventDate "2024.03.11"]
[EventType "k.o."]
[EventCountry "USA"]
[SourceTitle "playchess.com"]
[Source "ChessBase"]
[SourceQuality "1"]
[TimeControl "900+10"]

{[%evp 17,88,24,30,39,18,24,31,14,33,7,14,23,34,0,53,43,42,24,25,25,22,18,29,22,42,30,47,49,37,-29,36,43,68,-51,-67,-60,-58,-50,-57,-50,-56,-58,-58,-58,-57,-57,-58,-75,-66,-84,-81,-106,-110,-135,-119,-147,-157,-303,-300,-318,-305,-411,-341,-333,-325,-606,-605,-729,-697,-885,-864,-858,-784]} 1. d4 {[%emt 0:00:01]} d5 {[%emt 0:00:12]} 2. Nf3 {[%emt 0:00:03]} Nf6 {[%emt 0:00:02]} 3. g3 {[%emt 0:00:02]} Bf5 {[%emt 0:00:17]} 4. Nh4 {[%emt 0:00:11]} Bg6 {[%emt 0:00:14]} 5. Bg2 {[%emt 0:01:37]} c6 {[%emt 0:00:01]} 6. O-O {[%emt 0:00:21] D02: 1 d4 d5 2 Nf3 sidelines, including 2...Nf6 3 g3 and 2...Nf6 3 Bf4.} Nbd7 {[%emt 0:00:10]} 7. Nxg6 {[%emt 0:01:11]} hxg6 {[%emt 0:00:02]} 8. c4 {[%emt 0:00:01]} dxc4 $146 {[%emt 0:00:15]} ({Predecessor:} 8... e6 9. Nc3 dxc4 10. e4 Qa5 11. h3 e5 12. d5 cxd5 13. exd5 Bd6 14. Qe2 Rc8 {1-0 Denayer,E (2245)-Fiebig,T (2453) BEL-chT 1011 2010 (3.3)}) 9. Qc2 {[%emt 0:00:58]} e5 $1 {[%emt 0:00:25]} 10. Rd1 {[%emt 0:01:29]} exd4 {[%emt 0:00:36]} 11. Rxd4 {[%emt 0:00:03]} Bc5 {[%emt 0:00:27]} 12. Rxc4 {[%emt 0:00:11]} Bb6 {[%emt 0:00:32]} 13. Bg5 {[%emt 0:02:31]} Ne5 {[%emt 0:00:10]} 14. Rf4 $1 {[%emt 0:00:10]} Qc7 {[%emt 0:00:10]} 15. Nc3 {[%emt 0:00:10]} Nh7 {[%emt 0:00:10]} ({Better is} 15... Nfd7 $11) 16. Rh4 $1 $14 {[%emt 0:00:10]} O-O {[%emt 0:00:10]} 17. Bf4 {[%emt 0:01:26]} Qe7 {[%emt 0:04:05]} 18. Na4 {[%emt 0:00:08]} Rfe8 {[%emt 0:00:10]} 19. Rd1 {[%emt 0:02:05]} Nf6 {[%emt 0:01:11]} 20. Nxb6 {[%emt 0:00:16]} axb6 {[%emt 0:00:02]} 21. a4 {[%emt 0:00:09]} Qc5 {[%emt 0:00:53]} 22. Qxc5 {[%emt 0:01:08]} (22. Qc1 {keeps more tension.} Neg4 23. Qxc5 bxc5 24. Bf3) 22... bxc5 {[%emt 0:00:02]} 23. h3 {[%emt 0:00:27]} (23. b3 $14) 23... Ned7 {[%emt 0:03:38]} ({Black should play} 23... Nc4 $1 $11 24. b3 Na5) 24. Be3 $14 {[%emt 0:00:16]} Nb6 {[%emt 0:00:02]} 25. b3 {[%emt 0:00:29]} (25. Bxc5 $14 Nxa4 26. Be3) 25... Rxe3 $1 $15 {[%emt 0:00:11]} 26. fxe3 {[%emt 0:00:20]} g5 $1 {[%emt 0:00:00]} 27. Re4 $1 {[%emt 0:00:10]} Nxe4 {[%emt 0:00:03]} 28. Bxe4 {[%emt 0:00:09]} g6 {[%emt 0:00:15]} 29. Bd3 $1 {[%emt 0:00:32]} Kg7 {[%emt 0:01:13]} 30. Rc1 {[%emt 0:00:38]} Nd7 {[%emt 0:00:05]} 31. Kf2 {[%emt 0:00:05]} Kf6 {[%emt 0:00:32]} 32. Be4 {[%emt 0:00:15]} Ke7 {[%emt 0:00:09]} 33. Bf3 {[%emt 0:00:10]} Rh8 {[%emt 0:00:55]} 34. e4 {[%emt 0:01:10]} Kd6 {[%emt 0:00:21]} ({But not} 34... Rxh3 $6 35. Bg4 Rh2+ 36. Kg1 $11) 35. Rd1+ {[%emt 0:00:13]} Kc7 {[%emt 0:00:01]} 36. Rc1 {[%emt 0:00:00]} Kb6 {[%emt 0:00:26]} ({Of course not} 36... Rxh3 $6 37. Bg4 Rh2+ 38. Kg1 $11) 37. a5+ {[%emt 0:01:31]} (37. Bg4 $17 Ne5 38. Kg2) 37... Kb5 $19 {[%emt 0:00:11]} 38. a6 {[%emt 0:00:02]} bxa6 {[%emt 0:00:20]} 39. e3 {[%emt 0:00:16]} Ne5 {[%emt 0:00:09]} (39... Rxh3 40. Be2+ Kb4 41. Bxa6) 40. Be2+ {[%emt 0:00:10]} Kb4 {[%emt 0:00:10]} 41. Ra1 $2 {[%emt 0:00:10]} (41. Bxa6 Rxh3 (41... Kxb3 $2 42. Rxc5 f6 43. Kg2 $19) 42. Kg2) 41... Rxh3 $19 {[%emt 0:00:39]} 42. Rxa6 {[%emt 0:00:12]} Kxb3 {[%emt 0:00:10]} 43. Ra5 {[%emt 0:00:10]} Kb4 {[%emt 0:00:13]} 44. Ra7 {[%emt 0:00:10]} c4 {[%emt 0:00:07]} 0-1

[Event "American Cup Open Champions 2024"]
[Site "Saint Louis"]
[Date "2024.03.13"]
[Round "1.3"]
[White "Sevian, Samuel"]
[Black "Aronian, Levon"]
[Result "1/2-1/2"]
[ECO "C54"]
[WhiteElo "2697"]
[BlackElo "2722"]
[Annotator "TA"]
[PlyCount "215"]
[EventDate "2024.03.11"]
[EventType "k.o."]
[EventCountry "USA"]
[SourceTitle "playchess.com"]
[Source "ChessBase"]
[SourceQuality "1"]
[TimeControl "5400+30"]

{[%evp 10,214,13,6,17,12,8,0,0,4,24,25,29,29,33,14,11,12,36,33,33,37,31,32,32,22,34,27,32,28,26,14,52,36,49,46,29,19,41,43,43,45,41,16,27,45,89,68,77,65,81,10,0,2,43,16,17,29,25,25,23,26,23,20,9,0,0,0,0,0,0,0,0,0,0,0,0,0,0,0,0,0,74,74,80,80,87,87,87,87,87,87,116,66,149,149,149,149,149,149,149,149,149,149,149,149,149,140,149,0,92,0,0,0,0,0,0,0,0,0,0,0,0,0,0,0,0,0,0,0,0,0,0,0,0,0,0,0,0,0,0,0,0,0,0,0,0,0,0,0,0,0,0,0,0,0,0,0,0,0,0,0,0,0,0,0,0,0,0,0,0,0,0,0,0,0,0,0,0,0,0,0,0,0,0,0,0,0,0,0,0,0,0,0,0,0,0,0,0,0,0,0,0,0,0,0,1277]} 1. e4 {[%emt 0:01:28]} e5 {[%emt 0:00:06]} 2. Nf3 {[%emt 0:00:10]} Nc6 {[%emt 0:00:09]} 3. Bc4 {[%emt 0:00:12]} Bc5 {[%emt 0:00:20]} 4. c3 {[%emt 0:00:09]} Nf6 {[%emt 0:00:07]} 5. d3 {[%emt 0:00:11]} O-O {[%emt 0:00:17]} 6. Bg5 {[%emt 0:00:16]} h6 {[%emt 0:01:01]} 7. Bh4 {[%emt 0:00:20]} Be7 {[%emt 0:00:06]} 8. Nbd2 {[%emt 0:00:34]} d6 {[%emt 0:00:22] The position is equal.} 9. a4 {[%emt 0:00:10]} Nh7 {[%emt 0:05:37]} 10. Bg3 {[%emt 0:00:54]} a5 {[%emt 0:06:47]} 11. h3 {[%emt 0:08:40]} Ng5 {[%emt 0:02:23]} 12. Nxg5 {[%emt 0:10:22]} Bxg5 {[%emt 0:00:08]} 13. Nf3 {[%emt 0:00:09]} Bf6 {[%emt 0:00:15]} 14. Qb3 {[%emt 0:02:12]} Rb8 {[%emt 0:06:34]} 15. O-O {[%emt 0:02:28]} Qe7 {[%emt 0:00:52]} 16. Rfe1 {[%emt 0:06:31]} Be6 {[%emt 0:13:22]} 17. Rad1 {[%emt 0:00:57]} Bxc4 {[%emt 0:05:47]} 18. Qxc4 {[%emt 0:00:16]} Qd7 {[%emt 0:01:29]} 19. Qb5 {[%emt 0:05:47]} Rfd8 {[%emt 0:14:44]} 20. d4 {[%emt 0:01:25][%cal Rd4e5]} exd4 {[%emt 0:00:16]} 21. cxd4 {[%emt 0:00:29]} b6 {[%emt 0:05:10]} 22. b3 {[%emt 0:15:32]} Nb4 {[%emt 0:04:07]} 23. Qe2 {[%emt 0:16:03]} b5 {[%emt 0:05:30]} 24. e5 {[%emt 0:08:56]} Be7 {[%emt 0:00:06]} 25. d5 {[%emt 0:01:11]} bxa4 {[%emt 0:00:48]} 26. bxa4 {[%emt 0:01:19]} Re8 {[%emt 0:07:04][%cal Bd8e8,Be8f8,Bf8f7][%mdl 32]} 27. Qc4 {[%emt 0:02:22]} Rbc8 {[%emt 0:06:15] [#]} 28. e6 $1 {[%emt 0:08:15]} fxe6 {[%emt 0:00:05]} 29. Rxe6 {[%emt 0:00:04]} Rf8 {[%emt 0:06:38][%cal Oe7f6]} 30. Qg4 {[%emt 0:01:26]} ({White should play} 30. Rde1 $16 Bf6 31. Bh4) 30... Rf7 $11 {[%emt 0:02:58]} 31. Bh4 {[%emt 0:02:21]} (31. Rxh6 $2 Qxg4 32. hxg4 gxh6 $19) 31... Bf8 {[%emt 0:01:16]} (31... Bf6 {simplifies} 32. Bxf6 Rxf6 33. Rxf6 Qxg4 34. hxg4 gxf6 35. Nd4 Kf7) 32. Rd4 {[%emt 0:00:26] Qh5 would now be deadly.} (32. Rxh6 $2 Qxg4 33. hxg4 gxh6 $19) 32... c5 {[%emt 0:04:01]} 33. dxc6 {[%emt 0:00:42]} Nxc6 {[%emt 0:00:02]} 34. Rd5 {[%emt 0:03:32][%cal Og4g6]} Rf4 {[%emt 0:00:56]} 35. Qxf4 {[%emt 0:00:44]} Qxe6 {[%emt 0:00:01]} 36. Qd2 {[%emt 0:01:22]} Qe4 $1 {[%emt 0:00:12]} 37. Bg3 {[%emt 0:00:16]} Qxa4 {[%emt 0:01:01]} 38. Bxd6 {[%emt 0:00:06]} Qe4 {[%emt 0:01:08] Inhibits Qe2. Strongly threatening ...Rd8.} 39. Bxf8 {[%emt 0:00:33]} Rxf8 {[%emt 0:00:04]} 40. Rc5 {[%emt 0:00:28]} Rf6 {[%emt 0:01:08]} 41. Qa2+ {[%emt 0:00:23]} Kh8 {[%emt 0:00:43]} 42. Rc1 {[%emt 0:00:29]} Kh7 {[%emt 0:00:23]} 43. Re1 {[%emt 0:00:24]} Qg6 {[%emt 0:00:35]} 44. Ne5 {[%emt 0:01:03]} Nxe5 {[%emt 0:00:46]} 45. Rxe5 {[%emt 0:00:02]} Ra6 {[%emt 0:00:45]} (45... a4 $1 $11 {keeps the balance.}) 46. Rxa5 $16 {[%emt 0:00:23]} Rxa5 {[%emt 0:00:05]} 47. Qxa5 {[%emt 0:00:01][%mdl 4096] Endgame. KQ-KQ} Qe6 {[%emt 0:00:22]} 48. g4 {[%emt 0:01:09] Qf5+ is the strong threat.} Qc6 {[%emt 0:00:19]} 49. Qf5+ {[%emt 0:00:12]} Kh8 {[%emt 0:00:08]} 50. h4 {[%emt 0:00:06]} Qa8 {[%emt 0:00:33]} 51. g5 {[%emt 0:00:54]} (51. h5 $16) 51... Qe8 {[%emt 0:01:05] [#]} (51... Qa1+ $14 52. Kg2 hxg5) 52. g6 $1 {[%emt 0:01:31]} Qa8 {[%emt 0:00:22]} 53. Kh2 {[%emt 0:00:14]} Qb8+ {[%emt 0:00:15]} 54. Kg2 {[%emt 0:00:19]} Qd8 {[%emt 0:00:12]} 55. Qe4 {[%emt 0:00:05]} Qc8 {[%emt 0:00:30]} 56. Kg3 {[%emt 0:00:47]} Qb8+ {[%emt 0:00:30]} 57. Kf3 {[%emt 0:00:22]} Qf8+ {[%emt 0:00:18]} 58. Ke2 {[%emt 0:00:14]} Qb8 {[%emt 0:00:17]} 59. f4 {[%emt 0:00:54]} (59. Kf1 $16) 59... h5 {[%emt 0:01:46]} (59... Qb2+ $11 60. Kf1 Qa1+ 61. Kf2 Qb2+ 62. Kg3 Qc3+ (62... Qb3+ 63. Kh2 $11) 63. Kg4 Qc8+ 64. f5 Qc4) 60. f5 {[%emt 0:01:05]} ({Better is} 60. Qe5 $16 Qxe5+ 61. fxe5) 60... Qh2+ {[%emt 0:00:20]} 61. Kd3 {[%emt 0:00:10][%cal Re4e8]} Qg3+ {[%emt 0:00:57]} 62. Qe3 {[%emt 0:00:37]} Qb8 {[%emt 0:00:15]} (62... Qd6+ 63. Ke4 $16) 63. Kc4 {[%emt 0:00:33]} Qc8+ {[%emt 0:00:41]} 64. Qc5 {[%emt 0:00:08]} Qa8 {[%emt 0:00:29]} 65. Kb4 {[%emt 0:01:02]} Qe4+ {[%emt 0:00:19]} 66. Kb5 {[%emt 0:00:14][%cal Rc5f8]} Qb7+ {[%emt 0:00:14]} ({And not} 66... Qxh4 67. Qf8#) 67. Ka5 {[%emt 0:00:21][%cal Rc5f8]} Qa8+ {[%emt 0:00:15]} 68. Kb6 {[%emt 0:00:04]} Qb8+ {[%emt 0:00:04]} 69. Kc6 {[%emt 0:00:42]} Qc8+ {[%emt 0:00:06]} 70. Kb5 {[%emt 0:00:07][%cal Rc5c8]} Qb7+ {[%emt 0:00:05]} 71. Kc4 {[%emt 0:00:03][%cal Rc5f8]} Qe4+ {[%emt 0:00:12]} 72. Qd4 {[%emt 0:00:21]} Qc2+ {[%emt 0:00:12]} ({Worse is} 72... Qxf5 73. Qd8+) 73. Kb4 {[%emt 0:00:05][%cal Rd4d8]} Qb1+ {[%emt 0:00:08]} ({Stronger than} 73... Qxf5 74. Qd8+) 74. Kc3 {[%emt 0:00:15]} Qb8 {[%emt 0:01:47] Repels Qd8+} 75. Qd7 {[%emt 0:00:19]} Qa8 {[%emt 0:01:46]} 76. Kb4 {[%emt 0:01:04]} Qe4+ {[%emt 0:00:34]} 77. Kc5 {[%emt 0:00:15]} Qa8 {[%emt 0:00:38] Prevents Qc8+} 78. Qc6 {[%emt 0:02:03]} Qb8 {[%emt 0:00:26]} 79. Qf3 {[%emt 0:01:07]} Qa7+ {[%emt 0:00:40]} 80. Kd6 {[%emt 0:00:33]} Qb8+ {[%emt 0:00:10]} 81. Kd7 {[%emt 0:00:17]} Qb5+ {[%emt 0:00:09]} 82. Kc7 {[%emt 0:00:18] Qa8+ would kill now.} Qa5+ {[%emt 0:00:07]} 83. Kd6 {[%emt 0:00:35]} Qd8+ {[%emt 0:00:29]} 84. Kc5 {[%emt 0:00:14]} Qe7+ {[%emt 0:01:24]} 85. Kc6 {[%emt 0:00:27]} Qe8+ {[%emt 0:00:14]} 86. Kc5 {[%emt 0:01:03]} Qe7+ {[%emt 0:00:11]} 87. Kc4 {[%emt 0:00:09]} Qc7+ $1 {[%emt 0:00:47]} 88. Kd3 {[%emt 0:00:23]} Qd6+ {[%emt 0:00:09]} 89. Ke2 {[%emt 0:00:15] Intending Qa8+ and mate.} Qe5+ {[%emt 0:00:10]} 90. Kf2 {[%emt 0:01:16] Threatening mate with Qa8+.} Qb2+ $1 {[%emt 0:00:30]} 91. Kg3 {[%emt 0:00:27] White wants to mate with Qa8+.} Qb8+ $1 {[%emt 0:00:06]} 92. Kh3 {[%emt 0:00:04]} Qb3 {[%emt 0:00:04]} 93. Kg2 {[%emt 0:00:06]} Qb2+ $1 {[%emt 0:00:08]} 94. Kg3 {[%emt 0:00:05] White threatens Qa8+ and mate.} Qb8+ $1 {[%emt 0:00:05]} 95. Kf2 {[%emt 0:00:03]} Qb6+ {[%emt 0:00:28]} 96. Qe3 {[%emt 0:00:05]} Qb5 {[%emt 0:00:40]} 97. Kg3 {[%emt 0:00:33]} Qb8+ {[%emt 0:00:27]} 98. Kf3 {[%emt 0:00:08]} Qd8 {[%emt 0:01:21]} 99. Qe4 {[%emt 0:00:35]} Qb8 {[%emt 0:00:58]} 100. Qc6 {[%emt 0:00:28]} Qg8 {[%emt 0:01:25]} 101. Ke3 {[%emt 0:01:16] Black must now prevent Qf3.} Qb8 {[%emt 0:00:54]} 102. Ke4 {[%emt 0:00:11]} Qb4+ {[%emt 0:00:14]} 103. Kd5 {[%emt 0:00:23]} Qf8 {[%emt 0:00:18] Prevents Qe8.} 104. Qd7 {[%emt 0:00:24]} Qa8+ {[%emt 0:00:26]} 105. Kd6 {[%emt 0:01:48]} Qa3+ {[%emt 0:00:21]} 106. Ke6 {[%emt 0:00:23]} Qf8 {[%emt 0:00:06] Wards off Qe8} 107. Qf7 {[%emt 0:00:40][%cal Rf7f8] Active counter play!} Qd6+ {[%emt 0:00:32]} 108. Kxd6 {[%emt 0:00:02] Weighted Error Value: White=0.10 (very precise) /Black=0.13 (very precise) .  Missed win:     	White=1     	---        Mistake:       	White=4     	Black=3      Inaccurate:     	White=1     	Black=4      OK:         	White=26    	Black=34     Best:        	White=3     	Black=4      Strong:       	White=2     	Black=6} 1/2-1/2

[Event "American Cup Open Champions 2024"]
[Site "Saint Louis"]
[Date "2024.03.13"]
[Round "1.3"]
[White "Robson, Ray"]
[Black "Dominguez Perez, Leinier"]
[Result "1-0"]
[ECO "E48"]
[WhiteElo "2696"]
[BlackElo "2749"]
[Annotator "TA"]
[PlyCount "99"]
[EventDate "2024.03.11"]
[EventType "k.o."]
[EventCountry "USA"]
[SourceTitle "playchess.com"]
[Source "ChessBase"]
[SourceQuality "1"]
[TimeControl "5400+30"]

{[%evp 19,99,10,14,11,14,10,14,13,11,25,14,31,-7,6,25,0,0,0,26,25,33,0,163,182,172,142,150,141,143,124,224,236,248,0,0,0,248,218,362,383,360,391,378,369,389,386,380,362,392,366,378,354,395,400,402,395,464,464,729,712,1077,1019,870,1079,1120,1082,1110,1083,1862,1398,5583,1986,2421,4952,6701,6606,5916,5916,4614,2937,29988,29989]} 1. d4 {[%emt 0:01:39]} Nf6 {[%emt 0:00:04]} 2. c4 {[%emt 0:00:13]} e6 {[%emt 0:00:06]} 3. Nc3 {[%emt 0:00:11]} Bb4 {[%emt 0:00:07]} 4. e3 {[%emt 0:00:17]} O-O {[%emt 0:00:07]} 5. Bd3 {[%emt 0:00:20]} c5 {[%emt 0:02:30]} 6. Nge2 {[%emt 0:00:20]} d5 {[%emt 0:01:03]} 7. cxd5 {[%emt 0:00:26]} cxd4 {[%emt 0:00:09]} 8. exd4 {[%emt 0:00:11]} Nxd5 {[%emt 0:00:15]} 9. a3 {[%emt 0:00:47]} Ba5 {[%emt 0:06:58]} 10. O-O {[%emt 0:01:14]} Nc6 {[%emt 0:00:05]} 11. Bc2 {[%emt 0:07:00]} (11. Nxd5 {simplifies} exd5 12. Nf4 Bb6 13. Be3) 11... Bc7 {[%emt 0:29:23]} 12. Qd3 {[%emt 0:02:49]} Qh4 {[%emt 0:03:13][%csl Gc7][%cal Rh4h2]} 13. h3 {[%emt 0:03:31][%cal Oc1g5] The position is equal.} Nf6 {[%emt 0:01:51]} 14. Be3 {[%emt 0:19:07][%cal Bc1e3,Be3f2,Bf2g3][%mdl 32]} Rd8 {[%emt 0:01:45]} 15. Qd2 {[%emt 0:13:56]} h6 {[%emt 0:00:07]} 16. f4 $36 {[%emt 0:02:49][%mdl 2048] White is more active.} Nd5 {[%emt 0:22:41]} 17. Bf2 {[%emt 0:09:27]} Qf6 {[%emt 0:08:09][%cal Rd5f4]} 18. Rad1 {[%emt 0:19:11]} Nxc3 {[%emt 0:05:33]} (18... Bxf4 $2 19. Nxd5 exd5 20. Qxf4 $18) 19. bxc3 {[%emt 0:01:17]} Ne7 {[%emt 0:00:21]} 20. g4 {[%emt 0:09:01][%cal Bg2g4,Bg4g5][%mdl 32] Bg3 is the strong threat.} Bd7 $2 {[%emt 0:03:47] [#]} (20... Nd5 $11 {and Black stays safe.}) 21. Bg3 $1 $18 {[%emt 0:03:14] Strongly threatening g5.} g6 {[%emt 0:05:06]} 22. g5 {[%emt 0:03:11]} Qh8 {[%emt 0:02:11] [#]} 23. f5 $1 {[%emt 0:00:14][%mdl 512]} Bxg3 {[%emt 0:00:28]} 24. fxg6 {[%emt 0:00:13]} Bd6 {[%emt 0:04:35]} (24... Bh4 $16 25. Rxf7 Bxg5) 25. Rxf7 {[%emt 0:01:46]} hxg5 {[%emt 0:00:32]} 26. Rh7 {[%emt 0:00:11]} Qf6 {[%emt 0:00:05][%cal Od6h2] aiming for ...Bh2+!} 27. Rf7 {[%emt 0:00:03] The board is on fire.} (27. Rf1 $5 Nf5 $8 28. Rxf5 exf5 29. Bb3+ Be6 30. Bxe6+ Qxe6 31. Qxg5 Qxe2 32. Rh8+ Kg7 (32... Kxh8 33. Qh6+ Kg8 34. Qh7+ Kf8 35. Qf7#) 33. Rh7+ Kg8 34. Rh8+ Kg7 (34... Kxh8 35. Qf6+ Kg8 36. Qf7+ Kh8 37. Qh7#) 35. Rh7+ Kg8 $11) 27... Qh8 {[%emt 0:00:12] White stays focused until the end.} 28. Qxg5 {[%emt 0:01:17]} Qxh3 {[%emt 0:02:14] [#]} (28... Nd5 $142) 29. Rh7 $1 {[%emt 0:00:28]} Bh2+ {[%emt 0:00:50]} 30. Kf2 {[%emt 0:00:02][%cal Bg1f2,Bf2e1,Be1d2,Bd2c1][%mdl 32]} Rf8+ {[%emt 0:00:12]} 31. Ke1 {[%emt 0:00:07]} Qf1+ {[%emt 0:00:47]} ({Don't blunder} 31... Rf1+ $2 32. Kd2 Rxd1+ 33. Kxd1 (33. Bxd1 Qf5 $18) 33... Qf1+ 34. Kd2 $18) 32. Kd2 {[%emt 0:00:02][%cal Oh7h8] Intending Rh8+! and mate.} Bf4+ {[%emt 0:00:30]} 33. Nxf4 {[%emt 0:00:06]} Qxf4+ {[%emt 0:00:01]} 34. Qxf4 {[%emt 0:00:06]} Rxf4 {[%emt 0:00:03]} 35. Rxe7 {[%emt 0:00:12]} Rf2+ {[%emt 0:00:29]} 36. Kc1 {[%emt 0:00:19]} Bc6 {[%emt 0:01:17]} 37. Rxe6 {[%emt 0:01:41]} Rc8 {[%emt 0:00:01][%cal Of2c2]} 38. Rd2 {[%emt 0:01:54]} Rf3 {[%emt 0:00:24]} (38... Bd5 $142) 39. c4 {[%emt 0:00:31]} Rxa3 {[%emt 0:01:13]} 40. d5 {[%emt 0:00:16]} Be8 {[%emt 0:00:34]} 41. Rde2 {[%emt 0:00:27]} Bd7 {[%emt 0:00:16]} 42. Re7 {[%emt 0:00:17]} Rd8 {[%emt 0:00:30]} 43. Rh2 {[%emt 0:00:51] Hoping for Reh7.} Rg3 {[%emt 0:00:39]} 44. Rhh7 {[%emt 0:00:37] Threatening mate with Rhg7+.} Bc8 {[%emt 0:00:30]} 45. Reg7+ {[%emt 0:00:32]} Kf8 {[%emt 0:00:01]} 46. Rc7 {[%emt 0:00:25]} (46. d6 $142 Rg1+ 47. Kb2 Rxd6 48. Rc7) 46... Kg8 {[%emt 0:00:06]} 47. g7 {[%emt 0:00:36][%csl Gg7][%cal Rh7h8]} Rh3 {[%emt 0:01:20] [#]} 48. Rxc8 $1 {[%emt 0:00:19][%mdl 512]} Rxc8 {[%emt 0:00:06]} 49. Rxh3 {[%emt 0:00:05] White threatens Rh8+ and mate.} Rxc4 {[%emt 0:00:04]} 50. Rg3 {[%emt 0:00:26] Weighted Error Value: White=0.13 (very precise) /Black=0.40.  Loses game:     	---       	Black=1      Mistake:       	---       	Black=3      Inaccurate:     	White=1     	Black=2      OK:         	White=9     	Black=9      Best:        	White=7     	Black=4      Strong:       	White=2     	---        Brilliant:      	White=1     	---} 1-0